bitfinex/quotes_BTCUSD_20250101
["timestamp","ask_amount","ask_price","bid_price","bid_amount"]
[1735742984420,0.148809,94306.0,94295.0,0.10715692]
[1735742985446,0.001,94307.0,94295.0,0.10715692]
[1735742985644,0.001,94307.0,94295.0,0.10515692]
[1735742985846,0.113287,94306.0,94295.0,0.10415692]
[1735742986050,0.212066,94310.0,94295.0,0.10715692]
[1735742986250,0.204786,94309.0,94295.0,0.10715692]
[1735742986478,0.162331,94308.0,94295.0,0.10415692]
[1735742986684,0.001,94309.0,94296.0,0.01850569]
[1735742986886,0.001,94307.0,94297.0,0.10398632]
[1735742987239,0.212062,94312.0,94297.0,0.10398632]
[1735742987557,0.001,94310.0,94297.0,0.10398632]
[1735742987762,0.001,94310.0,94298.0,0.00106035]
[1735742987942,0.001,94310.0,94299.0,0.10398632]
[1735742988925,0.212062,94312.0,94299.0,0.10398632]
[1735742989139,0.001,94307.0,94299.0,0.10398632]
[1735742989540,0.212071,94308.0,94299.0,0.10398632]
[1735742989852,0.212071,94308.0,94299.0,0.10498632]
[1735742990017,0.374688,94307.0,94299.0,0.10498632]
[1735742990218,0.02887033,94306.0,94299.0,0.10498632]
[1735742990469,0.001,94307.0,94299.0,0.10598632]
[1735742990638,0.210417,94306.0,94299.0,0.10498632]
[1735742990842,0.001,94307.0,94299.0,0.10398632]
[1735742991667,0.401792,94306.0,94299.0,0.10398632]
[1735742991844,0.212075,94306.0,94299.0,0.10398632]
[1735742992053,0.212075,94306.0,94299.0,0.10498632]
[1735742992292,0.212075,94306.0,94299.0,0.10598632]
[1735742992502,0.15,94311.0,94299.0,0.10598632]
[1735742992636,0.001,94307.0,94299.0,0.10698632]
[1735742992841,0.389299,94310.0,94299.0,0.10398632]
[1735742993053,0.436614,94309.0,94299.0,0.002]
[1735742993264,0.212089,94300.0,94299.0,0.003]
[1735742993489,0.325715,94300.0,94295.0,0.0001706]
[1735742993685,0.110832,94299.0,94295.0,0.0001706]
[1735742994592,0.212089,94300.0,94295.0,0.0001706]
[1735742995408,0.213089,94300.0,94299.0,0.001]
[1735742995713,0.212089,94300.0,94295.0,0.0021706]
[1735742996092,0.213089,94300.0,94295.0,0.0031706]
[1735742996301,0.213089,94300.0,94295.0,0.0001706]
[1735742996662,0.214089,94300.0,94299.0,0.003]
[1735742996863,0.32259,94300.0,94299.0,0.003]
[1735742997222,0.32259,94300.0,94299.0,0.001]
[1735742997530,0.32059,94300.0,94295.0,0.0001706]
[1735742997745,0.212089,94300.0,94295.0,0.0001706]
[1735742998775,0.212089,94300.0,94295.0,0.0021706]
[1735742998908,0.213089,94300.0,94295.0,0.0031706]
[1735742999115,0.190782,94299.0,94295.0,0.0031706]
[1735742999710,0.424186,94298.0,94295.0,0.0031706]
[1735743000038,0.317987,94297.0,94295.0,0.0011706]
[1735743000209,0.317987,94297.0,94295.0,0.0001706]
[1735743000411,0.317987,94297.0,94295.0,0.0021706]
[1735743000610,0.317987,94297.0,94295.0,0.0031706]
[1735743000825,0.317987,94297.0,94295.0,0.0021706]
[1735743001034,0.212087,94301.0,94295.0,0.0021706]
[1735743001233,0.15,94304.0,94296.0,0.10398632]
[1735743001433,0.212068,94310.0,94297.0,0.01066541]
[1735743001638,0.291777,94309.0,94298.0,0.10398632]
[1735743001834,0.15,94307.0,94298.0,0.10398632]
[1735743002677,0.106287,94306.0,94298.0,0.10398632]
[1735743002885,0.15,94309.0,94298.0,0.10398632]
[1735743003089,0.3033,94309.0,94298.0,0.10398632]
[1735743003290,0.15,94307.0,94298.0,0.10398632]
[1735743003495,0.238981,94306.0,94298.0,0.10398632]
[1735743003698,0.138981,94306.0,94298.0,0.10498632]
[1735743003920,0.247471,94306.0,94298.0,0.10498632]
[1735743004324,0.0609539,94305.0,94298.0,0.001]
[1735743004503,0.212089,94300.0,94298.0,0.001]
[1735743004650,0.21208,94304.0,94298.0,0.001]
[1735743004852,0.21208,94304.0,94295.0,0.00066779]
[1735743004853,0.353545,94303.0,94295.0,0.00066779]
[1735743005051,0.353545,94303.0,94295.0,0.10465411]
[1735743005310,0.21208,94304.0,94295.0,0.10465411]
[1735743005663,0.15,94307.0,94295.0,0.10465411]
[1735743005901,0.250794,94306.0,94295.0,0.10465411]
[1735743006111,0.250794,94306.0,94295.0,0.10565411]
[1735743006307,0.250794,94306.0,94296.0,0.10398632]
[1735743006519,0.15,94312.0,94297.0,0.0798]
[1735743006716,0.15,94308.0,94298.0,0.10398632]
[1735743006921,0.002,94307.0,94298.0,0.10398632]
[1735743007177,0.001,94307.0,94298.0,0.10398632]
[1735743008112,0.15,94310.0,94299.0,0.0468]
[1735743008318,0.15,94310.0,94300.0,0.10398632]
[1735743008527,0.212047,94319.0,94300.0,0.10398632]
[1735743008733,0.23758228,94321.0,94301.0,0.0782]
[1735743008940,0.23758228,94321.0,94303.0,0.1]
[1735743009139,0.23758228,94321.0,94304.0,0.18218632]
[1735743009407,0.001,94307.0,94304.0,0.18218632]
[1735743009638,0.001,94307.0,94305.0,0.03551117]
[1735743009836,0.15,94324.0,94306.0,0.18218632]
[1735743009995,0.001,94321.0,94306.0,0.18218632]
[1735743010371,0.15,94324.0,94307.0,0.212073]
[1735743010545,8.53e-05,94325.0,94308.0,0.23229339]
[1735743010747,0.2121193,94325.0,94308.0,0.23229339]
[1735743010957,0.2121193,94325.0,94308.0,0.18218632]
[1735743012436,8.53e-05,94325.0,94308.0,0.18218632]
[1735743012812,0.001,94324.0,94308.0,0.18218632]
[1735743013012,8.53e-05,94325.0,94308.0,0.18318632]
[1735743013229,8.53e-05,94325.0,94308.0,0.23271245]
[1735743013642,8.53e-05,94325.0,94314.0,0.2211]
[1735743013771,8.53e-05,94325.0,94316.0,0.0756]
[1735743013978,0.001,94324.0,94318.0,0.0756]
[1735743014231,0.001,94324.0,94320.0,0.0756]
[1735743014431,8.53e-05,94325.0,94321.0,0.10398632]
[1735743014609,8.53e-05,94325.0,94321.0,0.13649495]
[1735743015433,8.53e-05,94325.0,94321.0,0.10398632]
[1735743015636,8.53e-05,94325.0,94324.0,0.387635]
[1735743015790,8.53e-05,94325.0,94324.0,0.53712132]
[1735743016598,8.53e-05,94326.0,94324.0,0.53712132]
[1735743016599,8.53e-05,94326.0,94325.0,0.123]
[1735743016798,0.00023414,94326.0,94325.0,0.30258632]
[1735743017106,0.00023414,94326.0,94325.0,0.30158632]
[1735743018420,0.00123414,94326.0,94325.0,0.30258632]
[1735743019058,0.00123414,94326.0,94325.0,0.30758632]
[1735743019655,0.00123414,94326.0,94325.0,0.30258632]
[1735743019837,0.00123414,94326.0,94325.0,0.30758632]
[1735743020852,0.00023414,94326.0,94325.0,0.30658632]
[1735743021373,0.00123414,94326.0,94325.0,0.30658632]
[1735743021961,0.00223414,94326.0,94325.0,0.31158632]
[1735743022281,0.00223414,94326.0,94325.0,0.21258632]
[1735743022478,0.00223414,94326.0,94325.0,0.31158632]
[1735743023003,0.00223414,94326.0,94325.0,0.21258632]
[1735743023204,0.00223414,94326.0,94325.0,0.28858632]
[1735743023784,0.00223414,94326.0,94325.0,0.31158632]
[1735743024637,0.00223414,94326.0,94325.0,0.18958632]
[1735743025284,0.00223414,94326.0,94325.0,0.32874955]
[1735743025471,0.00223414,94326.0,94325.0,0.37584955]
[1735743025814,0.00223414,94326.0,94325.0,0.35868632]
[1735743037596,0.00023414,94326.0,94325.0,0.34868632]
[1735743037799,0.00123414,94326.0,94325.0,0.35768632]
[1735743038004,0.00223414,94326.0,94325.0,0.36668632]
[1735743041945,0.2120283,94365.0,94342.0,0.023]
[1735743042143,0.381978,94364.0,94343.0,0.10398632]
[1735743043144,0.211949,94362.0,94343.0,0.10398632]
[1735743043346,0.443906,94361.0,94343.0,0.10398632]
[1735743044233,0.211949,94362.0,94343.0,0.10398632]
[1735743044441,0.211949,94362.0,94343.0,0.10798632]
[1735743044844,0.211949,94362.0,94343.0,0.10598632]
[1735743045207,0.211949,94362.0,94343.0,0.10898632]
[1735743045447,0.186379,94361.0,94343.0,0.10398632]
[1735743045650,0.186379,94361.0,94343.0,0.10598632]
[1735743045969,0.186379,94361.0,94343.0,0.11098632]
[1735743046834,0.186379,94361.0,94343.0,0.10898632]
[1735743047031,0.186379,94361.0,94343.0,0.10598632]
[1735743047420,0.25196979,94361.0,94343.0,0.11098632]
[1735743047778,0.514237,94360.0,94343.0,0.11098632]
[1735743048437,0.259757,94359.0,94343.0,0.11098632]
[1735743048612,0.06559079,94361.0,94343.0,0.10898632]
[1735743048613,0.27596,94360.0,94343.0,0.10898632]
[1735743049221,0.27596,94360.0,94343.0,0.10398632]
[1735743049859,0.27596,94360.0,94343.0,0.10598632]
[1735743050074,0.02542631,94359.0,94343.0,0.10598632]
[1735743050305,0.343244,94358.0,94343.0,0.10598632]
[1735743050505,0.02542631,94359.0,94343.0,0.10598632]
[1735743050730,0.28486,94358.0,94343.0,0.10598632]
[1735743050930,0.22966,94360.0,94343.0,0.10398632]
[1735743051162,0.14966,94359.0,94343.0,0.11198632]
[1735743051364,0.14966,94359.0,94343.0,0.10598632]
[1735743051564,0.149639,94360.0,94343.0,0.10398632]
[1735743051745,0.001,94359.0,94343.0,0.10998632]
[1735743051948,0.001,94359.0,94343.0,0.19108632]
[1735743052719,0.211949,94362.0,94343.0,0.18708632]
[1735743053086,0.145713,94361.0,94343.0,0.10598632]
[1735743053612,0.211971,94353.0,94343.0,0.10598632]
[1735743053804,0.211971,94353.0,94343.0,0.10398632]
[1735743053950,0.211971,94353.0,94343.0,0.10415692]
[1735743054146,0.211971,94353.0,94343.0,0.11215692]
[1735743054347,0.202396,94352.0,94343.0,0.10615692]
[1735743054666,0.211978,94350.0,94343.0,0.10915692]
[1735743054888,0.10505,94349.0,94343.0,0.10915692]
[1735743055153,0.10505,94349.0,94343.0,0.10715692]
[1735743055330,0.10505,94349.0,94343.0,0.11415692]
[1735743055533,0.211971,94353.0,94343.0,0.10415692]
[1735743055934,0.001,94350.0,94343.0,0.11015692]
[1735743056961,0.001,94350.0,94343.0,0.11215692]
[1735743057160,0.211971,94353.0,94343.0,0.10615692]
[1735743057529,0.001,94349.0,94343.0,0.11315692]
[1735743057731,0.001,94349.0,94343.0,0.10615692]
[1735743058175,0.001,94349.0,94343.0,0.11015692]
[1735743058352,0.211971,94353.0,94343.0,0.10415692]
[1735743058545,0.211971,94353.0,94343.0,0.10615692]
[1735743058787,0.001,94349.0,94343.0,0.11315692]
[1735743059957,0.001,94349.0,94343.0,0.11115692]
[1735743060396,0.212962,94357.0,94343.0,0.10615692]
[1735743060692,0.212962,94357.0,94343.0,0.11115692]
[1735743060894,0.212962,94357.0,94343.0,0.10615692]
[1735743061103,0.424924,94357.0,94343.0,0.10615692]
[1735743061254,0.001,94349.0,94343.0,0.11315692]
[1735743061465,0.001,94357.0,94343.0,0.10415692]
[1735743061674,0.15,94364.0,94343.0,0.12345261]
[1735743061861,0.15,94362.0,94344.0,0.21199]
[1735743062059,0.15,94360.0,94345.0,0.10398632]
[1735743063326,0.15,94358.0,94345.0,0.10398632]
[1735743063540,0.142539,94357.0,94345.0,0.10398632]
[1735743063731,0.19617,94356.0,94345.0,0.10398632]
[1735743064032,0.001,94349.0,94345.0,0.10398632]
[1735743064232,0.15,94358.0,94345.0,0.10398632]
[1735743064448,0.237501,94357.0,94345.0,0.10398632]
[1735743064620,0.237501,94357.0,94345.0,0.10598632]
[1735743064823,0.237501,94357.0,94345.0,0.10698632]
[1735743065067,0.237501,94357.0,94345.0,0.10498632]
[1735743065222,0.001,94349.0,94345.0,0.11198632]
[1735743065424,0.001,94349.0,94345.0,0.11098632]
[1735743065628,0.15,94358.0,94345.0,0.10498632]
[1735743065821,0.390092,94357.0,94345.0,0.10498632]
[1735743066046,0.0965,94356.0,94345.0,0.10498632]
[1735743066254,0.471358,94356.0,94345.0,0.10798632]
[1735743066426,0.353582,94355.0,94345.0,0.10798632]
[1735743066631,0.253582,94355.0,94345.0,0.10798632]
[1735743067044,0.253582,94355.0,94345.0,0.10698632]
[1735743067247,0.29393119,94355.0,94345.0,0.10898632]
[1735743067451,0.001,94353.0,94345.0,0.005]
[1735743067771,0.299288,94352.0,94343.0,0.0001706]
[1735743068096,0.299288,94352.0,94345.0,0.004]
[1735743068308,0.299288,94352.0,94345.0,0.005]
[1735743068528,0.51126,94352.0,94345.0,0.005]
[1735743068671,0.305303,94351.0,94343.0,0.10415692]
[1735743068890,0.29765,94350.0,94343.0,0.10815692]
[1735743069104,0.370427,94351.0,94343.0,0.10815692]
[1735743069298,0.381627,94351.0,94343.0,0.10515692]
[1735743069510,0.381627,94351.0,94345.0,0.003]
[1735743070118,0.131201,94351.0,94345.0,0.003]
[1735743070317,0.02787815,94350.0,94345.0,0.003]
[1735743070523,0.02787815,94350.0,94345.0,0.004]
[1735743070929,0.02787815,94350.0,94343.0,0.10415692]
[1735743071130,0.211972,94352.0,94343.0,0.10815692]
[1735743071324,0.444091,94351.0,94345.0,0.001]
[1735743071747,0.444091,94351.0,94345.0,0.004]
[1735743072130,0.413809,94351.0,94343.0,0.10515692]
[1735743072335,0.211974,94351.0,94343.0,0.10815692]
[1735743072615,0.468782,94350.0,94343.0,0.10515692]
[1735743073025,0.391618,94350.0,94343.0,0.10515692]
[1735743073235,0.0604587,94349.0,94343.0,0.10415692]
[1735743073443,0.001,94353.0,94343.0,0.0001706]
[1735743073444,0.001,94344.0,94343.0,0.0001706]
[1735743073644,0.627539,94344.0,94343.0,0.0001706]
[1735743073852,1.23031132,94344.0,94343.0,0.0001706]
[1735743074048,1.72205032,94344.0,94343.0,0.0001706]
[1735743074304,1.82603664,94344.0,94343.0,0.0011706]
[1735743074506,1.87563664,94344.0,94343.0,0.0011706]
[1735743074685,1.87563664,94344.0,94343.0,0.0041706]
[1735743074686,1.77165032,94344.0,94343.0,0.0041706]
[1735743074880,1.73140632,94344.0,94343.0,0.0041706]
[1735743075085,1.73140632,94344.0,94343.0,0.0011706]
[1735743075348,1.73340632,94344.0,94343.0,0.0011706]
[1735743075539,1.73340632,94344.0,94343.0,0.0001706]
[1735743075750,1.92089123,94344.0,94343.0,0.0001706]
[1735743075953,1.92204747,94344.0,94343.0,0.0001706]
[1735743076540,0.314241,94344.0,94343.0,0.0001706]
[1735743076735,0.15123213,94344.0,94343.0,0.0001706]
[1735743077276,0.14823213,94344.0,94343.0,0.0001706]
[1735743077477,0.001,94344.0,94343.0,0.0001706]
[1735743077652,0.004,94344.0,94343.0,0.10415692]
[1735743077888,0.28448912,94347.0,94343.0,0.11457261]
[1735743078068,0.003,94344.0,94343.0,0.0001706]
[1735743078268,0.003,94344.0,94343.0,0.10415692]
[1735743078494,0.001,94356.0,94343.0,0.10415692]
[1735743078673,0.001,94356.0,94344.0,0.09698632]
[1735743079057,0.134585,94355.0,94344.0,0.09698632]
[1735743081530,0.134585,94355.0,94343.0,0.0001706]
[1735743081531,0.211967,94354.0,94343.0,0.0001706]
[1735743081738,0.001,94350.0,94344.0,0.001]
[1735743081939,0.50866,94349.0,94344.0,0.001]
[1735743082150,0.001,94350.0,94344.0,0.001]
[1735743082337,0.148855,94349.0,94345.0,0.11202338]
[1735743082491,0.151,94360.0,94345.0,0.10398632]
[1735743082692,0.15,94358.0,94345.0,0.10398632]
[1735743083047,0.371,94357.0,94345.0,0.10398632]
[1735743083464,0.001,94351.0,94343.0,0.0001706]
[1735743084002,0.211963,94356.0,94343.0,0.0001706]
[1735743084213,0.427289,94355.0,94344.0,0.10598632]
[1735743084408,0.225306,94356.0,94344.0,0.10398632]
[1735743085053,0.375291,94357.0,94344.0,0.10398632]
[1735743085272,0.35763,94356.0,94344.0,0.10398632]
[1735743085494,0.373991,94357.0,94344.0,0.10398632]
[1735743085684,0.211963,94356.0,94344.0,0.10398632]
[1735743085925,0.198893,94355.0,94344.0,0.10398632]
[1735743086111,0.244092,94356.0,94344.0,0.10398632]
[1735743086346,0.262729,94355.0,94344.0,0.10398632]
[1735743087521,0.456844,94357.0,94344.0,0.10398632]
[1735743088189,0.161706,94356.0,94344.0,0.10398632]
[1735743088338,0.238469,94357.0,94344.0,0.10498632]
[1735743088714,0.06015073,94356.0,94344.0,0.10398632]
[1735743088926,0.393814,94355.0,94344.0,0.10398632]
[1735743090137,0.191628,94355.0,94344.0,0.10398632]
[1735743090345,0.262974,94357.0,94344.0,0.10398632]
[1735743091299,0.263974,94357.0,94344.0,0.10398632]
[1735743091516,0.247169,94356.0,94344.0,0.10398632]
[1735743091707,0.22503,94357.0,94344.0,0.10398632]
[1735743091921,0.222981,94356.0,94344.0,0.10398632]
[1735743093156,0.222981,94356.0,94344.0,0.10498632]
[1735743093579,0.200659,94356.0,94344.0,0.10498632]
[1735743093780,0.114162,94355.0,94344.0,0.10498632]
[1735743093998,0.161706,94356.0,94344.0,0.10498632]
[1735743094359,1.387564,94356.0,94344.0,0.10498632]
[1735743094571,1.387564,94356.0,94344.0,0.10398632]
[1735743094981,1.387564,94356.0,94344.0,0.10498632]
[1735743101999,1.387564,94356.0,94344.0,0.10515692]
[1735743103148,0.211965,94355.0,94344.0,0.10515692]
[1735743103401,0.212972,94352.0,94344.0,0.0011706]
[1735743103641,0.148559,94351.0,94344.0,0.0011706]
[1735743104355,0.122485,94351.0,94344.0,0.0011706]
[1735743104599,0.138509,94351.0,94344.0,0.0011706]
[1735743104842,0.138509,94351.0,94344.0,0.0001706]
[1735743105260,0.138509,94351.0,94344.0,0.0021706]
[1735743105546,0.138509,94351.0,94344.0,0.0001706]
[1735743106565,0.138509,94351.0,94344.0,0.0031706]
[1735743106804,0.138509,94351.0,94344.0,0.0011706]
[1735743106963,0.151,94357.0,94344.0,0.0011706]
[1735743107192,0.211963,94356.0,94344.0,0.0011706]
[1735743107428,0.225857,94355.0,94344.0,0.0011706]
[1735743107619,0.001,94353.0,94344.0,0.0011706]
[1735743108018,0.001,94353.0,94344.0,0.0001706]
[1735743108248,0.211963,94356.0,94344.0,0.0011706]
[1735743108249,0.001,94351.0,94344.0,0.0011706]
[1735743108606,0.133374,94350.0,94344.0,0.0001706]
[1735743108831,0.001,94351.0,94344.0,0.0031706]
[1735743109273,0.001,94351.0,94344.0,0.0011706]
[1735743109580,0.001,94351.0,94344.0,0.0031706]
[1735743109721,0.001,94351.0,94344.0,0.0041706]
[1735743109925,0.14951,94350.0,94344.0,0.0041706]
[1735743110719,0.001,94351.0,94344.0,0.0041706]
[1735743110947,0.14951,94350.0,94344.0,0.0041706]
[1735743111593,0.14951,94350.0,94344.0,0.0031706]
[1735743111938,0.14951,94350.0,94344.0,0.0041706]
[1735743112337,0.14951,94350.0,94344.0,0.0031706]
[1735743112540,0.14951,94350.0,94344.0,0.0001706]
[1735743112787,0.14951,94350.0,94344.0,0.0051706]
[1735743113224,0.15,94357.0,94344.0,0.0051706]
[1735743113225,0.151,94357.0,94344.0,0.0051706]
[1735743113426,1.387564,94356.0,94344.0,0.0051706]
[1735743114229,1.387564,94356.0,94344.0,0.0011706]
[1735743114612,1.387564,94356.0,94344.0,0.0001706]
[1735743115784,1.387564,94356.0,94345.0,0.17928632]
[1735743117256,1.06463919,94356.0,94345.0,0.17928632]
[1735743117460,0.20201,94355.0,94345.0,0.18328632]
[1735743117808,1.06464,94356.0,94345.0,0.17928632]
[1735743118213,1.06464,94356.0,94345.0,0.18028632]
[1735743118971,1.06464,94356.0,94345.0,0.17928632]
[1735743119279,1.06464,94356.0,94345.0,0.18428632]
[1735743119693,1.06464,94356.0,94345.0,0.17928632]
[1735743120461,1.06464,94356.0,94345.0,0.18328632]
[1735743120662,1.06464,94356.0,94345.0,0.17928632]
[1735743121218,1.06564,94356.0,94345.0,0.18328632]
[1735743121417,0.001,94356.0,94345.0,0.18328632]
[1735743121572,0.0010853,94357.0,94345.0,0.22761917]
[1735743121771,1.06464,94356.0,94345.0,0.22761917]
[1735743121991,1.06464,94356.0,94345.0,0.18428632]
[1735743122697,1.06464,94356.0,94345.0,0.17928632]
[1735743122901,1.06464,94356.0,94345.0,0.18028632]
[1735743123081,1.06464,94356.0,94345.0,0.18428632]
[1735743124271,1.06464,94356.0,94345.0,0.17928632]
[1735743124446,1.06464,94356.0,94345.0,0.18428632]
[1735743127049,0.03176476,94355.0,94345.0,0.18428632]
[1735743127254,0.456869,94354.0,94345.0,0.18428632]
[1735743127507,0.001,94347.0,94345.0,0.005]
[1735743127677,0.15,94353.0,94345.0,0.005]
[1735743127678,1.06685,94346.0,94345.0,0.005]
[1735743127902,1.08170132,94346.0,94345.0,0.005]
[1735743128108,1.08170132,94346.0,94345.0,0.004]
[1735743128318,1.08170132,94346.0,94345.0,0.0041706]
[1735743128595,1.08170132,94346.0,94345.0,0.0051706]
[1735743128831,1.08170132,94346.0,94345.0,0.0041706]
[1735743129010,1.08170132,94346.0,94345.0,0.0001706]
[1735743129414,0.977715,94346.0,94345.0,0.0051706]
[1735743129641,0.977715,94346.0,94345.0,0.0001706]
[1735743130630,1.058915,94346.0,94345.0,0.0001706]
[1735743130827,1.059915,94346.0,94345.0,0.0001706]
[1735743131279,0.978715,94346.0,94345.0,0.0001706]
[1735743131458,0.977715,94346.0,94345.0,0.0001706]
[1735743131670,0.836125,94346.0,94345.0,0.0001706]
[1735743131870,0.837125,94346.0,94345.0,0.0001706]
[1735743132496,0.841125,94346.0,94345.0,0.0001706]
[1735743132639,0.94511132,94346.0,94345.0,0.0001706]
[1735743132843,0.836125,94346.0,94345.0,0.0001706]
[1735743133224,0.837125,94346.0,94345.0,0.0001706]
[1735743133471,0.836125,94346.0,94345.0,0.0001706]
[1735743133894,0.837125,94346.0,94345.0,0.0001706]
[1735743134291,0.839125,94346.0,94345.0,0.0001706]
[1735743134836,0.837125,94346.0,94345.0,0.0001706]
[1735743135305,0.90850548,94346.0,94345.0,0.0001706]
[1735743135718,1.0134918,94346.0,94345.0,0.0001706]
[1735743135940,1.0946918,94346.0,94345.0,0.0001706]
[1735743136124,1.1946918,94346.0,94345.0,0.0001706]
[1735743136545,1.1936918,94346.0,94345.0,0.0001706]
[1735743136742,1.1936918,94346.0,94343.0,8e-07]
[1735743136743,0.41139,94344.0,94343.0,8e-07]
[1735743136944,0.51537632,94344.0,94343.0,8e-07]
[1735743138320,0.79986544,94344.0,94343.0,8e-07]
[1735743138540,0.80086544,94344.0,94343.0,8e-07]
[1735743138739,0.90086544,94344.0,94343.0,8e-07]
[1735743138979,1.00485176,94344.0,94343.0,8e-07]
[1735743139196,0.92730309,94344.0,94343.0,8e-07]
[1735743139392,0.95349692,94344.0,94343.0,8e-07]
[1735743139595,0.36303,94326.0,94325.0,0.0001706]
[1735743139800,1.63165632,94326.0,94325.0,0.0001706]
[1735743139980,1.73564264,94326.0,94325.0,0.0001706]
[1735743140808,1.73574785,94326.0,94325.0,0.0001706]
[1735743141525,1.73574785,94326.0,94325.0,6e-07]
[1735743141721,0.67110785,94326.0,94325.0,6e-07]
[1735743142057,0.67410785,94326.0,94325.0,6e-07]
[1735743142283,0.67910785,94326.0,94325.0,6e-07]
[1735743142482,0.57512153,94326.0,94325.0,6e-07]
[1735743142715,0.57012153,94326.0,94325.0,6e-07]
[1735743142911,0.57512153,94326.0,94325.0,6e-07]
[1735743143356,0.57212153,94326.0,94325.0,6e-07]
[1735743144575,0.57512153,94326.0,94325.0,6e-07]
[1735743144827,0.67910785,94326.0,94325.0,6e-07]
[1735743145229,0.67610785,94326.0,94325.0,6e-07]
[1735743145432,0.67810785,94326.0,94325.0,6e-07]
[1735743150295,0.70110785,94326.0,94325.0,6e-07]
[1735743152347,0.59712153,94326.0,94325.0,6e-07]
[1735743153487,0.47312153,94326.0,94325.0,6e-07]
[1735743153710,0.37013521,94326.0,94325.0,6e-07]
[1735743154345,0.00710521,94326.0,94325.0,6e-07]
[1735743154537,0.00710521,94326.0,94325.0,0.1233006]
[1735743155062,0.62997021,94326.0,94325.0,0.1233006]
[1735743155262,0.58024383,94326.0,94325.0,0.0763006]
[1735743155553,0.57524383,94326.0,94325.0,0.0763006]
[1735743155757,0.57524383,94326.0,94325.0,0.0773006]
[1735743155949,0.57324383,94326.0,94325.0,0.0773006]
[1735743156112,0.57524383,94326.0,94325.0,0.0763006]
[1735743156439,0.57524383,94326.0,94325.0,0.0773006]
[1735743156617,0.57324383,94326.0,94325.0,0.0773006]
[1735743156819,0.57324383,94326.0,94325.0,0.0783006]
[1735743157192,0.15110521,94326.0,94325.0,0.0783006]
[1735743157632,0.25789421,94326.0,94325.0,0.0783006]
[1735743159583,0.25789421,94326.0,94325.0,0.0020006]
[1735743160511,0.25789421,94326.0,94325.0,0.0010006]
[1735743160917,0.25789421,94326.0,94325.0,0.0020006]
[1735743161113,0.32608823,94326.0,94325.0,0.0020006]
[1735743161813,0.25789421,94326.0,94325.0,0.0020006]
[1735743162015,0.25789421,94326.0,94325.0,0.0010006]
[1735743162148,0.25789421,94326.0,94325.0,6e-07]
[1735743162329,0.15110521,94326.0,94325.0,0.0010006]
[1735743162538,0.15110521,94326.0,94325.0,6e-07]
[1735743163081,0.15110521,94326.0,94325.0,0.0010006]
[1735743163260,0.15110521,94326.0,94325.0,6e-07]
[1735743163659,0.15110521,94326.0,94325.0,0.0010006]
[1735743164068,1.21574521,94326.0,94325.0,0.0010006]
[1735743164263,1.30947315,94326.0,94325.0,0.0010006]
[1735743166148,1.21574521,94326.0,94325.0,0.0010006]
[1735743167876,1.21591581,94326.0,94325.0,0.0010006]
[1735743175786,1.31990213,94326.0,94325.0,0.0010006]
[1735743177041,1.32090213,94326.0,94325.0,6e-07]
[1735743177239,0.25626213,94326.0,94325.0,6e-07]
[1735743177443,0.35803504,94326.0,94325.0,6e-07]
[1735743177848,0.36103504,94326.0,94325.0,6e-07]
[1735743178029,0.25926213,94326.0,94325.0,6e-07]
[1735743180109,0.49668307,94326.0,94325.0,6e-07]
[1735743182012,0.25926213,94326.0,94325.0,6e-07]
[1735743206068,0.54416726,94326.0,94325.0,6e-07]
[1735743206235,0.44018094,94326.0,94325.0,6e-07]
[1735743206668,0.44018094,94326.0,94325.0,0.0772006]
[1735743207304,1.50482094,94326.0,94325.0,0.0772006]
[1735743208135,1.21991581,94326.0,94325.0,0.0772006]
[1735743209174,1.21591581,94326.0,94325.0,0.0772006]
[1735743209557,1.21791581,94326.0,94325.0,0.0772006]
[1735743209715,1.21591581,94326.0,94325.0,0.0772006]
[1735743210115,1.21591581,94326.0,94325.0,0.0782006]
[1735743210548,1.31990213,94326.0,94325.0,0.0782006]
[1735743210871,1.32190213,94326.0,94325.0,0.0010006]
[1735743211073,1.32190213,94326.0,94325.0,6e-07]
[1735743211277,0.25726213,94326.0,94325.0,0.0010006]
[1735743212217,1.31990213,94326.0,94325.0,0.0010006]
[1735743212848,1.31990213,94326.0,94325.0,6e-07]
[1735743213073,0.25526213,94326.0,94325.0,6e-07]
[1735743213675,0.35924845,94326.0,94325.0,6e-07]
[1735743213875,0.35924845,94326.0,94325.0,0.0010006]
[1735743214142,0.463039,94322.0,94321.0,2e-07]
[1735743214351,0.69401164,94322.0,94321.0,2e-07]
[1735743215632,0.79401164,94322.0,94321.0,2e-07]
[1735743216920,0.80001164,94322.0,94321.0,2e-07]
[1735743217126,0.79401164,94322.0,94321.0,2e-07]
[1735743217328,0.80001164,94322.0,94321.0,2e-07]
[1735743218497,0.95038111,94322.0,94321.0,2e-07]
[1735743218691,0.213098,94296.0,94284.0,0.0797]
[1735743218893,1.56303412,94296.0,94284.0,0.0797]
[1735743219682,2.06303412,94296.0,94284.0,0.0797]
[1735743219877,2.06316031,94296.0,94284.0,0.0797]
[1735743220079,2.06516031,94296.0,94284.0,0.0797]
[1735743220306,2.03485051,94296.0,94284.0,0.0797]
[1735743221296,2.22556441,94296.0,94284.0,0.0797]
[1735743221729,2.22456441,94296.0,94284.0,0.0797]
[1735743222134,2.03385051,94296.0,94284.0,0.0797]
[1735743222876,2.03185051,94296.0,94284.0,0.0797]
[1735743223083,2.13107948,94296.0,94284.0,0.0797]
[1735743225647,2.13207948,94296.0,94284.0,0.0797]
[1735743225847,2.23207948,94296.0,94278.0,0.0797]
[1735743226306,2.23307948,94296.0,94278.0,0.0797]
[1735743226479,2.23107948,94296.0,94278.0,0.0797]
[1735743226689,2.23207948,94296.0,94278.0,0.0797]
[1735743227873,2.23407948,94296.0,94278.0,0.0797]
[1735743228522,2.23307948,94296.0,94278.0,0.0797]
[1735743229777,2.23407948,94296.0,94278.0,0.0797]
[1735743230191,2.47264897,94296.0,94278.0,0.0797]
[1735743231352,2.23407948,94296.0,94278.0,0.0797]
[1735743234025,2.47181011,94296.0,94278.0,0.0797]
[1735743235841,2.23407948,94296.0,94278.0,0.0797]
[1735743236268,2.27659548,94296.0,94278.0,0.0797]
[1735743239663,2.17736651,94296.0,94278.0,0.0797]
[1735743239870,2.03485051,94296.0,94278.0,0.0797]